[Event "FIDE World Senior-50 CC 2023"]
[Site "Terrasini"]
[Date "2023.11.03"]
[Round "9.18"]
[White "Koganov, Mikhail"]
[Black "Papadimitriou, Loukas"]
[Result "1-0"]
[ECO "C41"]
[WhiteElo "2170"]
[BlackElo "1987"]
[Annotator "RC"]
[PlyCount "123"]
[EventDate "2023.10.22"]
[EventType "swiss"]
[EventCountry "ITA"]
[SourceTitle "playchess.com"]
[Source "ChessBase"]
[SourceQuality "1"]
[TimeControl "40/5400+30:1800+30"]

1. e4 {[%emt 0:00:08]} d6 {[%emt 0:01:47]} 2. d4 {[%emt 0:00:33]} Nf6 {[%emt 0:00:29]} 3. Nc3 {[%emt 0:00:41]} e5 {[%emt 0:00:08]} 4. Nf3 {[%emt 0:01:48]} Nbd7 {[%emt 0:00:14]} 5. Bc4 {[%emt 0:00:22]} Be7 {[%emt 0:00:06]} 6. a4 {[%emt 0:03:26]} O-O {[%emt 0:00:26]} 7. O-O {[%emt 0:00:27]} c6 {[%emt 0:01:59]} 8. h3 {[%emt 0:00:30]} Qc7 {[%emt 0:01:33]} 9. Re1 {[%emt 0:00:50]} b6 {[%emt 0:00:32]} 10. b3 {[%emt 0:13:45]} Bb7 {[%emt 0:02:41]} 11. Ba3 {[%emt 1:13:30]} Rae8 {[%emt 0:02:04]} 12. Bf1 {[%emt 0:00:00]} a6 {[%emt 0:03:14]} 13. Qd2 {[%emt 0:00:00]} h6 {[%emt 0:03:21]} 14. Rad1 {[%emt 0:00:00]} c5 {[%emt 0:03:56]} 15. dxe5 {[%emt 0:00:00]} Nxe5 {[%emt 0:02:51]} 16. Nxe5 {[%emt 0:00:00]} dxe5 {[%emt 0:00:05]} 17. Bc4 {[%emt 0:00:00]} Rd8 {[%emt 0:00:36]} 18. Qe2 {[%emt 0:00:00]} Qc8 {[%emt 0:04:04]} 19. Bb2 {[%emt 0:00:00]} Rfe8 {[%emt 0:05:43]} 20. f4 {[%emt 0:00:00]} Rxd1 {[%emt 0:14:17]} 21. Qxd1 {[%emt 0:00:00]} exf4 {[%emt 0:02:13]} 22. e5 {[%emt 0:00:00]} Rd8 {[%emt 0:00:15]} 23. Qe2 {[%emt 0:00:00]} Nd5 {[%emt 0:00:14]} 24. Nxd5 {[%emt 0:00:00]} Bxd5 {[%emt 0:01:42]} 25. Bxa6 {[%emt 0:00:00]} Qa8 {[%emt 0:01:04]} 26. Bc4 {[%emt 0:00:00]} Bxc4 {[%emt 0:00:26]} 27. Qxc4 {[%emt 0:00:00]} Bh4 {[%emt 0:03:54]} 28. Rf1 {[%emt 0:00:00]} Rd2 {[%emt 0:00:24]} 29. Rf3 {[%emt 0:00:00]} Rd1+ {[%emt 0:02:46]} 30. Rf1 {[%emt 0:00:00]} Rd2 {[%emt 0:05:40]} 31. Rf3 {[%emt 0:00:00]} Rd1+ {[%emt 0:00:06]} 32. Rf1 {[%emt 0:00:00]} Rxf1+ {[%emt 0:00:06]} 33. Kxf1 {[%emt 0:00:00]} Bg3 {[%emt 0:02:23]} 34. e6 {[%emt 0:00:00]} fxe6 {[%emt 0:03:03]} 35. Qxe6+ {[%emt 0:00:00]} Kh7 {[%emt 0:00:24]} 36. Qf7 {[%emt 0:00:00]} Qg8 {[%emt 0:00:19]} 37. Qxg8+ {[%emt 0:00:00]} Kxg8 {[%emt 0:00:05]} 38. Be5 {[%emt 0:00:00]} Kf7 {[%emt 0:34:20]} 39. Bc7 {[%emt 0:00:00]} Ke6 {[%emt 0:00:00]} 40. Bxb6 {[%emt 0:00:00]} Kd5 {[%emt 0:00:00]} 41. Bc7 {[%emt 0:12:48]} g5 {[%emt 0:00:00]} 42. Ba5 {[%emt 0:00:33]} h5 {[%emt 0:00:00]} 43. Ke2 {[%emt 0:00:48]} g4 {[%emt 0:00:00]} 44. hxg4 {[%emt 0:01:13]} hxg4 {[%emt 0:00:00]} 45. Be1 {[%emt 0:00:28]} f3+ {[%emt 0:00:00]} 46. gxf3 {[%emt 0:00:05]} gxf3+ {[%emt 0:00:00]} 47. Kf1 {[%emt 0:00:05]} Be5 {[%emt 0:03:34]} 48. Kf2 {[%emt 0:05:41]} Ke4 {[%emt 0:00:07]} 49. a5 {[%emt 0:00:26]} Bd4+ {[%emt 0:01:51]} 50. Kf1 {[%emt 0:27:23]} Kd5 {[%emt 0:00:20]} 51. Bf2 {[%emt 0:00:00]} Be5 {[%emt 0:00:31]} 52. Be3 {[%emt 0:00:00]} Bc7 {[%emt 0:02:10]} 53. a6 {[%emt 0:00:00]} Bb8 {[%emt 0:01:33]} 54. Kf2 {[%emt 0:00:00]} Kc6 {[%emt 0:00:14]} 55. Kxf3 {[%emt 0:00:00]} Kb5 {[%emt 0:00:17]} 56. Ke4 {[%emt 0:00:00]} c4 {[%emt 0:00:28]} 57. Kd5 {[%emt 0:00:00]} cxb3 {[%emt 0:00:34]} 58. cxb3 {[%emt 0:00:00]} Kxa6 {[%emt 0:02:41]} 59. Kc6 {[%emt 0:00:00]} Ka5 {[%emt 0:02:50]} 60. Bc5 {[%emt 0:00:00]} Bg3 {[%emt 0:02:32]} 61. b4+ {[%emt 0:00:00]} Ka6 {[%emt 0:00:19]} 62. Bb6 {[%emt 0:00:00]} 1-0

[Event "FIDE World Senior-50 CC 2023"]
[Site "Terrasini"]
[Date "2023.11.03"]
[Round "9.19"]
[White "Seul, Georg"]
[Black "Golovchuk, Oleg"]
[Result "0-1"]
[ECO "C48"]
[WhiteElo "2383"]
[BlackElo "2067"]
[Annotator "RC"]
[PlyCount "82"]
[EventDate "2023.10.22"]
[EventType "swiss"]
[EventCountry "ITA"]
[SourceTitle "playchess.com"]
[Source "ChessBase"]
[SourceQuality "1"]
[TimeControl "40/5400+30:1800+30"]

1. e4 {[%emt 0:00:08]} e5 {[%emt 0:00:19]} 2. Nc3 {[%emt 0:01:49]} Nf6 {[%emt 0:00:56]} 3. Nf3 {[%emt 0:00:10]} Nc6 {[%emt 0:00:19]} 4. Bb5 {[%emt 0:00:08]} Nd4 {[%emt 0:01:02]} 5. O-O {[%emt 0:00:13]} Nxb5 {[%emt 0:05:31]} 6. Nxb5 {[%emt 0:00:05]} c6 {[%emt 0:00:50]} 7. Nc3 {[%emt 0:00:07]} d6 {[%emt 0:01:08]} 8. d4 {[%emt 0:00:19]} Qc7 {[%emt 0:00:14]} 9. Bg5 {[%emt 0:00:26]} Be7 {[%emt 0:03:25]} 10. a4 {[%emt 0:00:16]} Bg4 {[%emt 0:02:02]} 11. Bxf6 {[%emt 0:16:25]} Bxf6 {[%emt 0:03:26]} 12. d5 {[%emt 0:00:08]} a5 {[%emt 0:05:20]} 13. Qd3 {[%emt 0:03:18]} O-O {[%emt 0:01:35]} 14. Nd2 {[%emt 0:28:51]} Rfd8 {[%emt 0:05:41]} 15. Nc4 {[%emt 0:01:22]} Be7 {[%emt 0:04:39]} 16. Ra3 {[%emt 0:14:27]} Rac8 {[%emt 0:05:58]} 17. Qg3 {[%emt 0:08:03]} Bd7 {[%emt 0:04:53]} 18. Ne3 {[%emt 0:00:14]} Bf8 {[%emt 0:02:23]} 19. Rb3 {[%emt 0:01:37]} Be8 {[%emt 0:03:07]} 20. h4 {[%emt 0:01:01]} Kh8 {[%emt 0:06:06]} 21. h5 {[%emt 0:00:36]} Rb8 {[%emt 0:04:35]} 22. Kh1 {[%emt 0:03:53]} b5 {[%emt 0:05:32]} 23. dxc6 {[%emt 0:01:11]} bxa4 {[%emt 0:00:38]} 24. Ncd5 {[%emt 0:01:31]} Qxc6 {[%emt 0:01:41]} 25. Rc3 {[%emt 0:00:08]} Qb5 {[%emt 0:02:28]} 26. h6 {[%emt 0:01:56]} Bc6 {[%emt 0:07:20]} 27. hxg7+ {[%emt 0:00:52]} Bxg7 {[%emt 0:00:10]} 28. Rd1 {[%emt 0:02:56]} Bxd5 {[%emt 0:01:34]} 29. Rxd5 {[%emt 0:00:18]} Qxb2 {[%emt 0:01:48]} 30. Rc7 {[%emt 0:01:40]} Qa1+ {[%emt 0:06:44]} 31. Rd1 {[%emt 0:00:56]} Rb1 {[%emt 0:00:12]} 32. Rxb1 {[%emt 0:00:07]} Qxb1+ {[%emt 0:00:05]} 33. Kh2 {[%emt 0:00:03]} Rg8 {[%emt 0:08:34]} 34. Rxf7 {[%emt 0:03:39]} Qc1 {[%emt 0:00:45]} 35. Nf5 {[%emt 0:08:32]} Bh6 {[%emt 0:05:09]} 36. Qh4 {[%emt 0:00:27]} Qf4+ {[%emt 0:00:31]} 37. Qxf4 {[%emt 0:00:37]} Bxf4+ {[%emt 0:00:10]} 38. g3 {[%emt 0:00:05]} Bd2 {[%emt 0:00:24]} 39. Rb7 {[%emt 0:00:54]} a3 {[%emt 0:00:53]} 40. Rb3 {[%emt 0:00:23]} Bc1 {[%emt 0:00:16]} 41. Rb5 {[%emt 0:02:27]} Ra8 {[%emt 0:00:17]} 0-1

[Event "FIDE World Senior-50 CC 2023"]
[Site "Terrasini"]
[Date "2023.11.04"]
[Round "10.1"]
[White "Stefansson, Hannes"]
[Black "Atalik, Suat"]
[Result "0-1"]
[ECO "C67"]
[WhiteElo "2529"]
[BlackElo "2427"]
[Annotator "RC"]
[PlyCount "74"]
[EventDate "2023.10.22"]
[EventType "swiss"]
[EventCountry "ITA"]
[SourceTitle "playchess.com"]
[Source "ChessBase"]
[SourceQuality "1"]
[TimeControl "40/5400+30:1800+30"]

1. e4 {[%emt 0:00:30]} e5 {[%emt 0:00:12]} 2. Nf3 {[%emt 0:00:11]} Nc6 {[%emt 0:00:18]} 3. Bb5 {[%emt 0:00:41]} Nf6 {[%emt 0:00:23]} 4. O-O {[%emt 0:00:44]} Nxe4 {[%emt 0:00:05]} 5. Re1 {[%emt 0:00:57]} Nd6 {[%emt 0:00:23]} 6. Nxe5 {[%emt 0:00:44]} Be7 {[%emt 0:00:37]} 7. Bf1 {[%emt 0:00:33]} Nxe5 {[%emt 0:01:25]} 8. Rxe5 {[%emt 0:00:23]} O-O {[%emt 0:00:11]} 9. d4 {[%emt 0:01:55]} Bf6 {[%emt 0:02:49]} 10. Re1 {[%emt 0:01:35]} Nf5 {[%emt 0:02:59]} 11. d5 {[%emt 0:03:24]} Re8 {[%emt 0:07:40]} 12. Nd2 {[%emt 0:08:12]} Rxe1 {[%emt 0:00:46]} 13. Qxe1 {[%emt 0:00:06]} Nd6 {[%emt 0:16:13]} 14. Nf3 {[%emt 0:19:24]} b6 {[%emt 0:01:27]} 15. Bf4 {[%emt 0:02:10]} Bxb2 {[%emt 0:05:56]} 16. Bxd6 {[%emt 0:01:54]} cxd6 {[%emt 0:00:09]} 17. Rd1 {[%emt 0:02:58]} Bb7 {[%emt 0:03:02]} 18. Qb4 {[%emt 0:04:24]} Be5 {[%emt 0:08:05]} 19. Qa4 {[%emt 0:02:18]} Qc7 {[%emt 0:07:46]} 20. Bd3 {[%emt 0:02:31]} g6 {[%emt 0:03:13]} 21. c4 {[%emt 0:03:11]} Re8 {[%emt 0:07:16]} 22. Rb1 {[%emt 0:01:01]} Bc8 {[%emt 0:01:29]} 23. h4 {[%emt 0:02:14]} h6 {[%emt 0:03:04]} 24. h5 {[%emt 0:03:08]} g5 {[%emt 0:01:56]} 25. g3 {[%emt 0:02:09]} Bg7 {[%emt 0:03:15]} 26. Kg2 {[%emt 0:00:43]} Kf8 {[%emt 0:00:19]} 27. Nh2 {[%emt 0:02:33]} Bb7 {[%emt 0:01:21]} 28. Ng4 {[%emt 0:04:33]} a6 {[%emt 0:01:54]} 29. Qb3 {[%emt 0:04:34]} b5 {[%emt 0:02:49]} 30. cxb5 {[%emt 0:00:13]} Qc5 {[%emt 0:01:55]} 31. Bc4 {[%emt 0:01:49]} axb5 {[%emt 0:08:25]} 32. Qxb5 {[%emt 0:00:15]} Qd4 {[%emt 0:00:34]} 33. Ne3 {[%emt 0:01:09]} Rxe3 {[%emt 0:06:32]} 34. fxe3 {[%emt 0:00:14]} Qe4+ {[%emt 0:00:11]} 35. Kh2 {[%emt 0:05:20]} Be5 {[%emt 0:00:49]} 36. Kh3 {[%emt 0:02:54]} g4+ {[%emt 0:01:33]} 37. Kh2 {[%emt 0:00:10]} Ba6 {[%emt 0:00:40]} 0-1

[Event "FIDE World Senior-50 CC 2023"]
[Site "Terrasini"]
[Date "2023.11.04"]
[Round "10.2"]
[White "Dlugy, Maxim"]
[Black "Novik, Maxim"]
[Result "1/2-1/2"]
[ECO "D99"]
[WhiteElo "2520"]
[BlackElo "2375"]
[Annotator "RC"]
[PlyCount "34"]
[EventDate "2023.10.22"]
[EventType "swiss"]
[EventCountry "ITA"]
[SourceTitle "playchess.com"]
[Source "ChessBase"]
[SourceQuality "1"]
[TimeControl "40/5400+30:1800+30"]

1. d4 {[%emt 0:00:04]} Nf6 {[%emt 0:00:06]} 2. c4 {[%emt 0:00:08]} g6 {[%emt 0:00:13]} 3. Nc3 {[%emt 0:00:07]} d5 {[%emt 0:00:06]} 4. Nf3 {[%emt 0:00:29]} Bg7 {[%emt 0:00:06]} 5. Qb3 {[%emt 0:00:04]} dxc4 {[%emt 0:01:08]} 6. Qxc4 {[%emt 0:00:05]} O-O {[%emt 0:00:05]} 7. e4 {[%emt 0:00:04]} Nfd7 {[%emt 0:00:57]} 8. Be3 {[%emt 0:02:58]} Nc6 {[%emt 0:02:21]} 9. Rd1 {[%emt 0:03:25]} Nb6 {[%emt 0:00:07]} 10. Qb3 {[%emt 0:00:10]} Bg4 {[%emt 0:00:25]} 11. d5 {[%emt 0:00:28]} Ne5 {[%emt 0:00:30]} 12. Be2 {[%emt 0:00:05]} Nxf3+ {[%emt 0:00:13]} 13. gxf3 {[%emt 0:00:03]} Bh5 {[%emt 0:00:07]} 14. Rg1 {[%emt 0:28:56]} Qc8 {[%emt 0:01:04]} 15. Rg3 {[%emt 0:02:06]} c6 {[%emt 0:00:42]} 16. dxc6 {[%emt 0:01:26]} bxc6 {[%emt 1:30:20]} 17. Bd4 {[%emt 0:19:42]} Qc7 {[%emt 0:00:00]} 1/2-1/2

[Event "FIDE World Senior-50 CC 2023"]
[Site "Terrasini"]
[Date "2023.11.04"]
[Round "10.3"]
[White "Godena, Michele"]
[Black "Morovic Fernandez, Ivan"]
[Result "1-0"]
[ECO "B10"]
[WhiteElo "2441"]
[BlackElo "2488"]
[Annotator "ChessBase"]
[PlyCount "93"]
[EventDate "2023.10.22"]
[EventType "swiss"]
[EventCountry "ITA"]
[SourceTitle "playchess.com"]
[Source "ChessBase"]
[SourceQuality "1"]
[TimeControl "40/5400+30:1800+30"]

1. e4 {[%emt 0:00:04]} c6 {[%emt 0:00:18]} 2. d3 {[%emt 0:10:14]} d5 {[%emt 0:00:50]} 3. Nf3 {[%emt 0:00:10]} Qc7 {[%emt 0:01:23]} 4. Nbd2 {[%emt 0:10:32]} Bg4 {[%emt 0:03:21]} 5. Be2 {[%emt 0:03:22]} e6 {[%emt 0:07:23]} 6. h3 {[%emt 0:22:21]} Bh5 {[%emt 0:02:56]} 7. O-O {[%emt 0:00:18]} Nf6 {[%emt 0:03:49]} 8. e5 {[%emt 0:05:31]} Nfd7 {[%emt 0:04:52]} 9. d4 {[%emt 0:00:13]} Be7 {[%emt 0:00:47]} 10. Nb3 {[%emt 0:11:59]} O-O {[%emt 0:02:59]} 11. Bf4 {[%emt 0:04:45]} c5 {[%emt 0:03:54]} 12. dxc5 {[%emt 0:01:51]} Nc6 {[%emt 0:04:09]} 13. Nfd4 {[%emt 0:05:02]} Bxe2 {[%emt 0:06:13]} 14. Qxe2 {[%emt 0:00:04]} Nxd4 {[%emt 0:02:26]} 15. Nxd4 {[%emt 0:00:05]} Bxc5 {[%emt 0:00:11]} 16. Rad1 {[%emt 0:02:56]} Rfc8 {[%emt 0:06:08]} 17. c3 {[%emt 0:03:37]} Be7 {[%emt 0:05:04]} 18. Qg4 {[%emt 0:00:36]} Qb6 {[%emt 0:06:27]} 19. Rfe1 {[%emt 0:04:29]} Rc4 {[%emt 0:04:49]} 20. Bc1 {[%emt 0:03:50]} Nb8 {[%emt 0:09:01]} 21. Rd3 {[%emt 0:01:20]} g6 {[%emt 0:05:04]} 22. b3 {[%emt 0:03:15]} Rc8 {[%emt 0:00:32]} 23. Rf3 {[%emt 0:00:30]} Nd7 {[%emt 0:04:14]} 24. Bh6 {[%emt 0:00:37]} Re8 {[%emt 0:08:45]} 25. h4 {[%emt 0:00:37]} Bd8 {[%emt 0:05:59]} 26. h5 {[%emt 0:00:51]} Bc7 {[%emt 0:00:26]} 27. Bf4 {[%emt 0:03:39]} Qc5 {[%emt 0:00:30]} 28. hxg6 {[%emt 0:00:18]} hxg6 {[%emt 0:00:16]} 29. Rh3 {[%emt 0:00:32]} Kg7 {[%emt 0:00:53]} 30. Bh6+ {[%emt 0:00:29]} Kg8 {[%emt 0:00:03]} 31. Bg5 {[%emt 0:00:30]} Qf8 {[%emt 0:00:45]} 32. Bf6 {[%emt 0:00:52]} Nxf6 {[%emt 0:00:57]} 33. exf6 {[%emt 0:00:05]} Bd8 {[%emt 0:00:22]} 34. Qh4 {[%emt 0:01:06]} Qg7 {[%emt 0:00:04]} 35. fxg7 {[%emt 0:00:03]} Bxh4 {[%emt 0:00:02]} 36. Rxh4 {[%emt 0:00:05]} Kxg7 {[%emt 0:00:11]} 37. f4 {[%emt 0:00:46]} Rac8 {[%emt 0:00:47]} 38. Rh3 {[%emt 0:00:04]} Rc5 {[%emt 0:00:36]} 39. Kf2 {[%emt 0:00:29]} Kf6 {[%emt 0:00:39]} 40. g4 {[%emt 0:00:36]} g5 {[%emt 0:01:13]} 41. Rh6+ {[%emt 0:31:12]} Kg7 {[%emt 0:30:12]} 42. fxg5 {[%emt 0:00:00]} Rxc3 {[%emt 0:00:00]} 43. Reh1 {[%emt 0:00:00]} Rg8 {[%emt 0:00:00]} 44. g6 {[%emt 0:00:00]} fxg6 {[%emt 0:00:00]} 45. g5 {[%emt 0:00:00]} Re8 {[%emt 0:00:00]} 46. Rh7+ {[%emt 0:00:00]} Kf8 {[%emt 0:00:00]} 47. Rh8+ {[%emt 0:00:00]} 1-0

[Event "FIDE World Senior-50 CC 2023"]
[Site "Terrasini"]
[Date "2023.11.04"]
[Round "10.4"]
[White "Adams, Michael"]
[Black "Minasian, Artashes"]
[Result "1-0"]
[ECO "B12"]
[WhiteElo "2670"]
[BlackElo "2462"]
[Annotator "TA"]
[PlyCount "67"]
[EventDate "2023.10.22"]
[EventType "swiss"]
[EventCountry "ITA"]
[SourceTitle "playchess.com"]
[Source "ChessBase"]
[SourceQuality "1"]
[TimeControl "40/5400+30:1800+30"]

{[%evp 12,67,10,-3,33,45,42,7,25,36,54,54,62,50,53,49,81,76,103,89,91,96,91,93,96,99,111,93,164,178,166,157,112,131,127,112,137,127,207,41,37,37,48,35,46,38,374,374,365,346,12834,12833,29987,29988,29988,29989,29990,29991]} 1. e4 {[%emt 0:00:03]} c6 {[%emt 0:00:14]} 2. d4 {[%emt 0:00:07]} d5 {[%emt 0:00:04]} 3. e5 {[%emt 0:00:04]} Bf5 {[%emt 0:00:12]} 4. h4 {[%emt 0:00:08]} h5 {[%emt 0:00:35]} 5. Bd3 {[%emt 0:00:06]} Bxd3 {[%emt 0:00:15]} 6. Qxd3 {[%emt 0:00:06]} e6 {[%emt 0:00:02]} 7. Nf3 {[%emt 0:00:07]} Nh6 {[%emt 0:02:17] B12: Caro-Kann: Advance Variation.} 8. Bxh6 {[%emt 0:07:52]} Rxh6 {[%emt 0:00:10]} 9. Nc3 {[%emt 0:00:07] [#]} Nd7 $146 {[%emt 0:13:17] The position is equal.} ({Predecessor:} 9... Be7 10. O-O-O b5 11. Rh3 Rg6 12. Rg3 Rxg3 13. fxg3 g6 14. Rf1 Kd7 15. Nd2 b4 {½-½ Wallace,P (2209)-Gilbert,J (2075) BCF-chT3a 0001 (4NCL) 2000 (2.2)}) 10. Ne2 {[%emt 0:00:33]} Qa5+ {[%emt 0:02:23]} 11. c3 {[%emt 0:00:23]} Qb5 {[%emt 0:00:27]} 12. Qd2 {[%emt 0:05:53]} c5 {[%emt 0:03:00]} 13. a4 {[%emt 0:01:53][%cal Ba2a4,Ba4a5][%mdl 32]} Qb6 {[%emt 0:07:31]} 14. O-O {[%emt 0:03:06]} c4 {[%emt 0:06:34]} 15. a5 {[%emt 0:07:16]} Qc6 {[%emt 0:00:53]} 16. Rfb1 {[%emt 0:05:59]} Be7 {[%emt 0:07:47]} 17. b3 {[%emt 0:02:42]} cxb3 {[%emt 0:08:59]} 18. Rxb3 {[%emt 0:00:49]} Rh8 {[%emt 0:00:06]} 19. Qb2 {[%emt 0:09:44]} b6 {[%emt 0:02:46]} (19... Rb8 $16) 20. axb6 $1 $18 {[%emt 0:06:39]} axb6 {[%emt 0:00:27]} 21. Rxa8+ {[%emt 0:07:08]} Qxa8 {[%emt 0:00:10]} 22. Nf4 {[%emt 0:03:03]} g6 {[%emt 0:04:32]} 23. Ng5 {[%emt 0:03:18][%cal Oc3c4]} Qc6 {[%emt 0:09:21] Dodges c4} 24. Qa1 {[%emt 0:01:57] White is more active.} Rg8 {[%emt 0:03:18]} (24... b5 $16 {is a better defense.} 25. Nfh3 Kf8) 25. Qc1 $2 {[%emt 0:04:08]} (25. c4 $1 $18 {[%cal Rc4d5]} dxc4 26. Re3 Bxg5 27. hxg5) 25... Bxg5 $14 {[%emt 0:07:55]} 26. hxg5 {[%emt 0:00:03] Qa3 is the strong threat.} Kf8 $1 {[%emt 0:00:03]} 27. Qa3+ {[%emt 0:03:42]} Kg7 {[%emt 0:00:03]} 28. Qe7 {[%emt 0:01:04]} Ra8 $2 {[%emt 0:17:53][%mdl 8192] [#] Loses the game.} (28... Rf8 $1 $14) 29. c4 $1 $18 {[%emt 0:03:27][%mdl 512]} dxc4 {[%emt 0:01:03] [#]} 30. Rf3 {[%emt 0:00:21][%cal Of4h5] White threatens Nxh5+! and mate.} Rf8 $2 {[%emt 0:00:41] [#]} (30... Ra1+ $2 31. Kh2 $18) (30... Nxe5 31. dxe5 Qe8) 31. d5 $1 {[%emt 0:01:18][%mdl 576] Promotion} exd5 {[%emt 0:00:03]} (31... Qa4 32. Kh2) 32. e6 {[%emt 0:00:05] White mates.} Ne5 {[%emt 0:02:52]} 33. Qf6+ {[%emt 0:00:33]} Kh7 {[%emt 0:00:36]} 34. Qxe5 {[%emt 0:00:08] Weighted Error Value: White=0.10 (very precise) /Black=0.57} 1-0

[Event "FIDE World Senior-50 CC 2023"]
[Site "Terrasini"]
[Date "2023.11.04"]
[Round "10.5"]
[White "Mrva, Martin"]
[Black "Sturua, Zurab"]
[Result "1-0"]
[ECO "C55"]
[WhiteElo "2366"]
[BlackElo "2514"]
[Annotator "RC"]
[PlyCount "79"]
[EventDate "2023.10.22"]
[EventType "swiss"]
[EventCountry "ITA"]
[SourceTitle "playchess.com"]
[Source "ChessBase"]
[SourceQuality "1"]
[TimeControl "40/5400+30:1800+30"]

1. e4 {[%emt 0:00:05]} e5 {[%emt 0:00:15]} 2. Nf3 {[%emt 0:00:11]} Nc6 {[%emt 0:00:16]} 3. Bc4 {[%emt 0:00:11]} Nf6 {[%emt 0:00:16]} 4. d3 {[%emt 0:00:08]} Be7 {[%emt 0:01:27]} 5. O-O {[%emt 0:00:41]} O-O {[%emt 0:00:09]} 6. Nc3 {[%emt 0:00:52]} d6 {[%emt 0:00:44]} 7. a4 {[%emt 0:01:43]} Be6 {[%emt 0:08:15]} 8. Nd5 {[%emt 0:00:46]} Bxd5 {[%emt 0:21:44]} 9. exd5 {[%emt 0:00:35]} Nb8 {[%emt 0:00:21]} 10. d4 {[%emt 0:17:37]} e4 {[%emt 0:00:27]} 11. Ng5 {[%emt 0:04:11]} c6 {[%emt 0:07:16]} 12. dxc6 {[%emt 0:22:26]} bxc6 {[%emt 0:00:41]} 13. d5 {[%emt 0:01:08]} Qa5 {[%emt 0:00:16]} 14. Ra3 {[%emt 0:11:27]} cxd5 {[%emt 0:03:32]} 15. Bb5 {[%emt 0:02:49]} a6 {[%emt 0:07:31]} 16. Nh3 {[%emt 0:13:23]} Qd8 {[%emt 0:10:16]} 17. Be2 {[%emt 0:00:11]} Nc6 {[%emt 0:00:30]} 18. Nf4 {[%emt 0:01:37]} d4 {[%emt 0:00:46]} 19. Rh3 {[%emt 0:03:08]} d5 {[%emt 0:01:59]} 20. b3 {[%emt 0:02:56]} Bd6 {[%emt 0:03:19]} 21. g4 {[%emt 0:02:27]} Qc7 {[%emt 0:02:14]} 22. Ng2 {[%emt 0:01:04]} Rfe8 {[%emt 0:01:08]} 23. g5 {[%emt 0:01:47]} Nd7 {[%emt 0:03:13]} 24. f3 {[%emt 0:00:10]} Nde5 {[%emt 0:05:33]} 25. f4 {[%emt 0:04:43]} Nd7 {[%emt 0:02:11]} 26. Kh1 {[%emt 0:00:53]} Nf8 {[%emt 0:01:55]} 27. f5 {[%emt 0:00:42]} Re5 {[%emt 0:02:50]} 28. Bg4 {[%emt 0:01:48]} e3 {[%emt 0:03:50]} 29. Qe1 {[%emt 0:00:33]} Re4 {[%emt 0:00:52]} 30. Bf3 {[%emt 0:00:27]} Ne5 {[%emt 0:00:41]} 31. Bxe4 {[%emt 0:00:43]} dxe4 {[%emt 0:00:04]} 32. Qe2 {[%emt 0:01:54]} Nf3 {[%emt 0:01:49]} 33. Ne1 {[%emt 0:00:05]} Nxg5 {[%emt 0:00:55]} 34. Rh4 {[%emt 0:00:59]} f6 {[%emt 0:01:52]} 35. Rg4 {[%emt 0:00:04]} Bb4 {[%emt 0:00:49]} 36. h4 {[%emt 0:00:14]} Nh3 {[%emt 0:01:15]} 37. Bxe3 {[%emt 0:02:36]} h5 {[%emt 0:02:12]} 38. Rxe4 {[%emt 0:00:08]} Qb7 {[%emt 0:01:27]} 39. Qg2 {[%emt 0:00:25]} dxe3 {[%emt 0:03:17]} 40. Rxe3 {[%emt 0:00:14]} 1-0

[Event "FIDE World Senior-50 CC 2023"]
[Site "Terrasini"]
[Date "2023.11.04"]
[Round "10.6"]
[White "Vinter-Schou, Uffe"]
[Black "Degraeve, Jean-Marc"]
[Result "1-0"]
[ECO "E62"]
[WhiteElo "2345"]
[BlackElo "2479"]
[Annotator "ChessBase"]
[PlyCount "83"]
[EventDate "2023.10.22"]
[EventType "swiss"]
[EventCountry "ITA"]
[SourceTitle "playchess.com"]
[Source "ChessBase"]
[SourceQuality "1"]
[TimeControl "40/5400+30:1800+30"]

1. Nf3 {[%emt 0:00:02]} Nf6 {[%emt 0:02:29]} 2. c4 {[%emt 0:00:12]} g6 {[%emt 0:01:02]} 3. g3 {[%emt 0:00:10]} Bg7 {[%emt 0:00:06]} 4. Bg2 {[%emt 0:00:08]} O-O {[%emt 0:00:07]} 5. O-O {[%emt 0:00:10]} d6 {[%emt 0:00:05]} 6. d4 {[%emt 0:00:15]} c6 {[%emt 0:02:42]} 7. Nc3 {[%emt 0:00:11]} Bf5 {[%emt 0:00:19]} 8. Re1 {[%emt 0:01:46]} Ne4 {[%emt 0:03:19]} 9. Qb3 {[%emt 0:00:14]} Qb6 {[%emt 0:02:30]} 10. g4 {[%emt 0:23:21]} Nxc3 {[%emt 0:02:55]} 11. gxf5 {[%emt 0:00:15]} Qxb3 {[%emt 0:01:34]} 12. axb3 {[%emt 0:00:06]} Ne4 {[%emt 0:00:03]} 13. fxg6 {[%emt 0:06:35]} hxg6 {[%emt 0:00:24]} 14. Ng5 {[%emt 0:00:40]} Nxg5 {[%emt 0:16:58]} 15. Bxg5 {[%emt 0:00:03]} Bxd4 {[%emt 0:00:21]} 16. Bxe7 {[%emt 0:00:39]} Re8 {[%emt 0:00:06]} 17. Bxd6 {[%emt 0:00:28]} Bxb2 {[%emt 0:00:07]} 18. Ra2 {[%emt 0:01:56]} Be5 {[%emt 0:01:27]} 19. Bxe5 {[%emt 0:12:12]} Rxe5 {[%emt 0:01:45]} 20. Rea1 {[%emt 0:01:23]} a5 {[%emt 0:15:29]} 21. b4 {[%emt 0:23:18]} g5 {[%emt 0:02:17]} 22. e3 {[%emt 0:01:04]} Nd7 {[%emt 0:01:47]} 23. c5 {[%emt 0:06:55]} f5 {[%emt 0:14:52]} 24. Rxa5 {[%emt 0:01:02]} Rxa5 {[%emt 0:01:03]} 25. Rxa5 {[%emt 0:00:02]} Re7 {[%emt 0:00:25]} 26. Ra8+ {[%emt 0:12:09]} Kf7 {[%emt 0:01:41]} 27. Rd8 {[%emt 0:00:19]} Ne5 {[%emt 0:01:06]} 28. Kf1 {[%emt 0:01:40]} f4 {[%emt 0:01:01]} 29. exf4 {[%emt 0:00:32]} gxf4 {[%emt 0:00:02]} 30. Rd4 {[%emt 0:00:20]} f3 {[%emt 0:02:42]} 31. Bxf3 {[%emt 0:00:51]} Nxf3 {[%emt 0:00:10]} 32. Rf4+ {[%emt 0:00:05]} Kg6 {[%emt 0:00:07]} 33. Rxf3 {[%emt 0:00:04]} Re4 {[%emt 0:00:31]} 34. Rb3 {[%emt 0:00:11]} Kf5 {[%emt 0:00:50]} 35. h3 {[%emt 0:02:00]} Kf4 {[%emt 0:00:53]} 36. Rg3 {[%emt 0:00:10]} Kf5 {[%emt 0:03:17]} 37. Rg4 {[%emt 0:00:06]} Re7 {[%emt 0:00:05]} 38. Kg2 {[%emt 0:00:07]} Rd7 {[%emt 0:00:15]} 39. Kg3 {[%emt 0:01:50]} Rd1 {[%emt 0:00:49]} 40. f3 {[%emt 0:00:47]} Rg1+ {[%emt 0:00:17]} 41. Kh2 {[%emt 0:30:53]} Rb1 {[%emt 0:30:42]} 42. h4 {[%emt 0:06:19]} 1-0